fUSD/lending_fUSD_20240521
["ID","MTS","AMOUNT","RATE_DAILY","PERIOD"]
[327618816,1716253871322,-654.42,0.00039452,6]
[327618817,1716253871331,-500.0,0.00039452,6]
[327618818,1716253871341,-601.35,0.00039452,6]
[327618819,1716253871351,-580.65,0.00039452,6]
[327618820,1716253871361,-737.96,0.00039452,6]
[327618821,1716253871371,-714.29,0.00039452,6]
[327618822,1716253871380,-638.94707147,0.00039452,6]
[327618823,1716253871390,-655.63,0.00039452,6]
[327618824,1716253871400,-597.09,0.00039452,6]
[327618825,1716253871410,-500.0,0.00039452,6]
[327618826,1716253871420,-500.0,0.00039452,6]
[327618827,1716253871430,-500.0,0.00039452,6]
[327618828,1716253871442,-500.0,0.00039452,6]
[327618829,1716253871451,-296.90139007,0.00039452,6]
[327618830,1716253871461,-500.0,0.00039452,6]
[327618831,1716253871470,-846.95,0.00039452,6]
[327618832,1716253871480,-488.95,0.00039452,6]
[327618833,1716253871490,-624.22,0.00039452,6]
[327618834,1716253871500,-766.13,0.00039452,6]
[327618835,1716253871511,-500.0,0.00039452,6]
[327618836,1716253871521,-500.0,0.00039452,6]
[327618837,1716253871531,-500.0,0.00039452,6]
[327618838,1716253871540,-848.1,0.00039452,6]
[327618839,1716253871551,-941.22,0.00039452,6]
[327618840,1716253871561,-730.95,0.00039452,6]
[327618841,1716253871570,-725.79,0.00039452,6]
[327618842,1716253871580,-500.0,0.00039452,6]
[327618843,1716253871590,-500.0,0.00039452,6]
[327618844,1716253871600,-667.6,0.00039452,6]
[327618845,1716253871610,-500.0,0.00039452,6]
[327618846,1716253871620,-685.07,0.00039452,6]
[327618847,1716253871630,-934.07,0.00039452,6]
[327618848,1716253871639,-517.98,0.00039452,6]
[327618849,1716253871650,-284.8172431,0.00039452,6]
[327618850,1716253871660,-500.0,0.00039452,6]
[327618851,1716253871670,-500.0,0.00039452,6]
[327618852,1716253871680,-670.21,0.00039452,6]
[327618853,1716253871692,-525.91,0.00039452,6]
[327618854,1716253871701,-500.0,0.00039452,6]
[327618855,1716253871717,-500.0,0.00039452,6]
[327618856,1716253871727,-1236.09,0.00039452,6]
[327618857,1716253871736,-500.0,0.00039452,6]
[327618858,1716253871747,-601.18,0.00039452,6]
[327618859,1716253871757,-568.48,0.00039452,6]
[327618860,1716253871766,-500.0,0.00039452,6]
[327618861,1716253871776,-875.14,0.00039452,6]
[327618862,1716253871787,-542.7,0.00039452,6]
[327618863,1716253871797,-500.0,0.00039452,6]
[327618864,1716253871808,-792.2,0.00039452,6]
[327618865,1716253871819,-500.0,0.00039452,6]
[327618866,1716253871830,-500.0,0.00039452,6]
[327618867,1716253871840,-500.0,0.00039452,6]
[327618868,1716253871850,-1037.3,0.00039452,6]
[327618869,1716253871860,-500.0,0.00039452,6]
[327618870,1716253871870,-630.75,0.00039452,6]
[327618871,1716253871880,-170.07992653,0.00039452,6]
[327618872,1716253871889,-500.0,0.00039452,6]
[327618873,1716253871900,-500.0,0.00039452,6]
[327618874,1716253871910,-1653.32,0.00039452,6]
[327618875,1716253871920,-500.0,0.00039452,6]
[327618876,1716253871931,-500.0,0.00039452,6]
[327618877,1716253871941,-500.0,0.00039452,6]
[327618878,1716253871952,-500.0,0.00039452,6]
[327618879,1716253871961,-500.0,0.00039452,6]
[327618880,1716253871971,-1120.61,0.00039452,6]
[327618881,1716253871981,-669.25,0.00039452,6]
[327618882,1716253871990,-500.0,0.00039452,6]
[327618883,1716253872001,-813.04,0.00039452,6]
[327618884,1716253872011,-500.0,0.00039452,6]
[327618885,1716253872021,-1166.25,0.00039452,6]
[327618886,1716253872032,-2000.0,0.00039452,2]
[327618887,1716253872041,-504.64,0.00039452,6]
[327618888,1716253872051,-200.0,0.00039452,2]
[327618889,1716253872060,-500.0,0.00039452,6]
[327618890,1716253872193,-500.0,0.00039452,6]
[327618891,1716253872205,-500.0,0.00039452,6]
[327618892,1716253872214,-500.0,0.00039452,6]
[327618893,1716253872224,-939.86,0.00039452,6]
[327618894,1716253872233,-500.0,0.00039452,6]
[327618895,1716253872242,-811.87,0.00039452,6]
[327618896,1716253872252,-597.24,0.00039452,6]
[327618897,1716253872261,-500.0,0.00039452,6]
[327618898,1716253872270,-694.56,0.00039452,6]
[327618899,1716253872281,-1871.88,0.00039452,6]
[327618900,1716253872290,-500.0,0.00039452,6]
[327618901,1716253872301,-500.0,0.00039452,6]
[327618902,1716253872310,-744.65,0.00039452,6]
[327618903,1716253872319,-500.0,0.00039452,6]
[327618904,1716253872329,-500.0,0.00039452,6]
[327618905,1716253872338,-500.0,0.00039452,6]
[327618906,1716253872348,-1369.96,0.00039452,6]
[327618907,1716253872357,-635.95,0.00039452,6]
[327618908,1716253872367,-2112.37,0.00039452,6]
[327618909,1716253872376,-871.55,0.00039452,6]
[327618910,1716253872386,-887.0,0.00039452,6]
[327618911,1716253872397,-827.16,0.00039452,6]
[327618912,1716253872407,-500.0,0.00039452,6]
[327618913,1716253872417,-721.74,0.00039452,6]
[327618914,1716253872428,-529.85,0.00039452,6]
[327618915,1716253872440,-500.0,0.00039452,6]
[327618916,1716253872450,-500.0,0.00039452,6]
[327618917,1716253872461,-500.0,0.00039452,6]
[327618918,1716253872470,-1197.69,0.00039452,6]
[327618919,1716253872479,-500.0,0.00039452,6]
[327618920,1716253872488,-1190.48,0.00039452,6]
[327618921,1716253872498,-1828.03,0.00039452,6]
[327618922,1716253872508,-1054.6,0.00039452,6]
[327618923,1716253872517,-500.0,0.00039452,6]
[327618924,1716253872526,-500.0,0.00039452,6]
[327618925,1716253872536,-1567.69,0.00039452,6]
[327618926,1716253872545,-575.98,0.00039452,6]
[327618927,1716253872555,-500.0,0.00039452,6]
[327618928,1716253872564,-500.0,0.00039452,6]
[327618929,1716253872573,-500.0,0.00039452,6]
[327618930,1716253872583,-1298.53,0.00039452,6]
[327618931,1716253872593,-500.0,0.00039452,6]
[327618932,1716253872602,-697.63,0.00039452,6]
[327618933,1716253872612,-554.63,0.00039452,6]
[327618934,1716253872621,-500.0,0.00039452,6]
[327618935,1716253872631,-1013.55,0.00039452,6]
[327618936,1716253872640,-590.82,0.00039452,6]
[327618937,1716253872650,-500.0,0.00039452,6]
[327618938,1716253872659,-1746.3,0.00039452,6]
[327618939,1716253872669,-500.0,0.00039452,6]
[327618940,1716253872678,-691.29,0.00039452,6]
[327618941,1716253872689,-500.0,0.00039452,6]
[327618942,1716253872699,-798.66,0.00039452,6]
[327618943,1716253872716,-500.0,0.00039452,6]
[327618944,1716253872726,-1349.81,0.00039452,6]
[327618945,1716253872736,-500.0,0.00039452,6]
[327618946,1716253872746,-500.0,0.00039452,6]
[327618947,1716253872757,-500.0,0.00039452,6]
[327618948,1716253872766,-809.51,0.00039452,6]
[327618949,1716253872776,-150.95344687,0.00039452,6]
[327618950,1716253872785,-618.32,0.00039452,6]
[327618951,1716253872796,-1306.71,0.00039452,6]
[327618952,1716253872806,-1019.22,0.00039452,6]
[327618953,1716253872815,-1515.04,0.00039452,6]
[327618954,1716253872825,-1950.47,0.00039452,6]
[327618955,1716253872834,-500.0,0.00039452,6]
[327618956,1716253872843,-1020.07,0.00039452,6]
[327618957,1716253872853,-500.0,0.00039452,6]
[327618958,1716253872862,-718.21,0.00039452,6]
[327618959,1716253872871,-1369.07,0.00039452,6]
[327618960,1716253872881,-1227.07,0.00039452,6]
[327618961,1716253872891,-709.46,0.00039452,6]
[327618962,1716253872901,-1409.6,0.00039452,6]
[327618963,1716253872910,-525.27,0.00039452,6]
[327618964,1716253872920,-1316.57,0.00039452,6]
[327618965,1716253872929,-500.0,0.00039452,6]
[327618966,1716253872941,-1496.02,0.00039452,6]
[327618967,1716253872950,-500.0,0.00039452,6]
[327618968,1716253872960,-500.0,0.00039452,6]
[327618969,1716253872969,-913.46,0.00039452,6]
[327618970,1716253872979,-500.0,0.00039452,6]
[327618971,1716253872989,-662.89,0.00039452,6]
[327618972,1716253872998,-1011.32,0.00039452,6]
[327618973,1716253873008,-323.98408507,0.00039452,6]
[327618974,1716253873018,-872.0,0.00039452,6]
[327618975,1716253873028,-938.12,0.00039452,6]
[327618976,1716253873037,-940.01,0.00039452,6]
[327618977,1716253873048,-635.83,0.00039452,6]
[327618978,1716253873057,-500.0,0.00039452,6]
[327618979,1716253873066,-500.0,0.00039452,6]
[327618980,1716253873075,-879.24,0.00039452,6]
[327618981,1716253873085,-500.0,0.00039452,6]
[327618982,1716253873095,-1903.66,0.00039452,6]
[327618983,1716253873104,-821.19,0.00039452,6]
[327618984,1716253873114,-1569.82,0.00039452,6]
[327618985,1716253873124,-500.0,0.00039452,6]
[327618986,1716253873133,-1224.82,0.00039452,6]
[327618987,1716253873143,-1123.26,0.00039452,6]
[327618988,1716253873152,-500.0,0.00039452,6]
[327618989,1716253873162,-150.0,0.00039452,6]
[327618990,1716253873171,-992.53,0.00039452,6]
[327618991,1716253873180,-984.64,0.00039452,6]
[327618992,1716253873192,-785.45,0.00039452,6]
[327618993,1716253873201,-1072.18,0.00039452,6]
[327618994,1716253873211,-500.0,0.00039452,6]
[327618995,1716253873220,-500.0,0.00039452,6]
[327618996,1716253873230,-1442.98,0.00039452,6]
[327618997,1716253873239,-718.51,0.00039452,6]
[327618998,1716253873248,-500.0,0.00039452,6]
[327618999,1716253873258,-1307.29,0.00039452,6]
[327619000,1716253873268,-637.93,0.00039452,6]
[327619001,1716253873277,-1236.67,0.00039452,6]
[327619002,1716253873287,-596.26,0.00039452,6]
[327619003,1716253873297,-500.0,0.00039452,6]
[327619004,1716253873307,-500.0,0.00039452,6]
[327619005,1716253873316,-961.55,0.00039452,6]
[327619006,1716253873326,-500.0,0.00039452,6]
[327619007,1716253873335,-1528.43,0.00039452,6]
[327619008,1716253873346,-2000.21,0.00039452,6]
[327619009,1716253873356,-2220.28,0.00039452,6]
[327619010,1716253873365,-831.9,0.00039452,6]
[327619011,1716253873375,-500.0,0.00039452,6]
[327619012,1716253873385,-500.0,0.00039452,6]
[327619013,1716253873394,-1063.58,0.00039452,6]
[327619014,1716253873403,-566.57,0.00039452,6]
[327619015,1716253873412,-631.21,0.00039452,6]
[327619016,1716253873422,-839.51,0.00039452,6]
[327619017,1716253873431,-500.0,0.00039452,6]
[327619018,1716253873441,-1772.05,0.00039452,6]
[327619019,1716253873450,-965.68,0.00039452,6]
[327619020,1716253873460,-602.68,0.00039452,6]
[327619021,1716253873469,-921.58,0.00039452,6]
[327619022,1716253873479,-1394.51,0.00039452,6]
[327619023,1716253873489,-1162.17,0.00039452,6]
[327619024,1716253873498,-614.28,0.00039452,6]
[327619025,1716253873508,-278.97370594,0.00039452,6]
[327619026,1716253873517,-1060.71,0.00039452,6]
[327619027,1716253873527,-500.0,0.00039452,6]
[327619028,1716253873537,-528.37,0.00039452,6]
[327619029,1716253873546,-500.0,0.00039452,6]
[327619030,1716253873556,-500.0,0.00039452,6]
[327619031,1716253873565,-500.0,0.00039452,6]
[327619032,1716253873575,-1165.48,0.00039452,6]
[327619033,1716253873584,-700.85,0.00039452,6]
[327619034,1716253873593,-500.0,0.00039452,6]
[327619035,1716253873603,-2925.39,0.00039452,6]
[327619036,1716253873612,-500.0,0.00039452,6]
[327619037,1716253873622,-1023.61,0.00039452,6]
[327619038,1716253873631,-500.0,0.00039452,6]
[327619039,1716253873640,-1192.72,0.00039452,6]
[327619040,1716253873650,-1322.43,0.00039452,6]
[327619041,1716253873659,-542.94,0.00039452,6]
[327619042,1716253873668,-500.0,0.00039452,6]
[327619043,1716253873678,-500.0,0.00039452,6]
[327619044,1716253873687,-1406.7,0.00039452,6]
[327619045,1716253873707,-683.34,0.00039452,6]
[327619046,1716253873717,-1895.45,0.00039452,6]
[327619047,1716253873729,-1170.56,0.00039452,6]
[327619048,1716253873739,-500.0,0.00039452,6]
[327619049,1716253873748,-500.0,0.00039452,6]
[327619050,1716253873758,-1440.84,0.00039452,6]
[327619051,1716253873768,-500.0,0.00039452,6]
[327619052,1716253873777,-500.0,0.00039452,6]
[327619053,1716253873787,-1246.71,0.00039452,6]
[327619054,1716253873796,-500.0,0.00039452,6]
[327619055,1716253873807,-2282.68,0.00039452,6]
[327619056,1716253873818,-500.0,0.00039452,6]
[327619057,1716253873827,-1032.78,0.00039452,6]
[327619058,1716253873836,-1145.65,0.00039452,6]
[327619059,1716253873846,-500.0,0.00039452,6]
[327619060,1716253873856,-500.0,0.00039452,6]
[327619061,1716253873865,-500.0,0.00039452,6]
[327619062,1716253873874,-1116.95,0.00039452,6]
[327619063,1716253873884,-1016.96,0.00039452,6]
[327619064,1716253873894,-500.0,0.00039452,6]
[327619065,1716253873904,-1090.03,0.00039452,6]
[327619066,1716253873913,-1315.47,0.00039452,6]
[327619067,1716253873922,-2113.96,0.00039452,6]
[327619068,1716253873932,-692.72,0.00039452,6]
[327619069,1716253873943,-687.02,0.00039452,6]
[327619070,1716253873953,-1662.51,0.00039452,6]
[327619071,1716253873962,-551.08,0.00039452,6]
[327619072,1716253873971,-500.0,0.00039452,6]
[327619073,1716253873981,-600.87,0.00039452,6]
[327619074,1716253873990,-1171.02,0.00039452,6]
[327619075,1716253874000,-500.0,0.00039452,6]
[327619076,1716253874010,-1221.16,0.00039452,6]
[327619077,1716253874020,-500.0,0.00039452,6]
[327619078,1716253874029,-2379.73,0.00039452,6]
[327619079,1716253874038,-1623.43,0.00039452,6]
[327619080,1716253874049,-543.23,0.00039452,6]
[327619081,1716253874058,-514.59687138,0.00039452,6]
[327619082,1716253874068,-995.54,0.00039452,6]
[327619083,1716253874077,-1358.58,0.00039452,6]
[327619084,1716253874086,-1058.26,0.00039452,6]
[327619085,1716253874096,-1184.4,0.00039452,6]
[327619086,1716253874106,-668.51,0.00039452,6]
[327619087,1716253874115,-1155.28,0.00039452,6]
[327619088,1716253874125,-1390.14,0.00039452,6]
[327619089,1716253874135,-500.0,0.00039452,6]
[327619090,1716253874144,-300.0,0.00039452,6]
[327619091,1716253874154,-529.08,0.00039452,6]
[327619092,1716253874163,-1522.62,0.00039452,6]
[327619093,1716253874172,-2002.78,0.00039452,6]
[327619094,1716253874181,-660.52,0.00039452,6]
[327619095,1716253874192,-1218.08,0.00039452,6]
[327619096,1716253874201,-544.66,0.00039452,6]
[327619097,1716253874211,-1879.14,0.00039452,6]
[327619098,1716253874220,-804.63,0.00039452,6]
[327619099,1716253874230,-1151.64,0.00039452,6]
[327619100,1716253874239,-870.65,0.00039452,6]
[327619101,1716253874249,-500.0,0.00039452,6]
[327619102,1716253874258,-500.0,0.00039452,6]
[327619103,1716253874268,-1154.11,0.00039452,6]
[327619104,1716253874277,-500.0,0.00039452,6]
[327619105,1716253874287,-500.0,0.00039452,6]
[327619106,1716253874297,-797.88,0.00039452,6]
[327619107,1716253874307,-500.0,0.00039452,6]
[327619108,1716253874316,-2506.85,0.00039452,6]
[327619109,1716253874326,-1171.98,0.00039452,6]
[327619110,1716253874335,-2091.8,0.00039452,6]
[327619111,1716253874344,-3207.94,0.00039452,6]
[327619112,1716253874354,-500.0,0.00039452,6]
[327619113,1716253874363,-500.0,0.00039452,6]
[327619114,1716253874373,-862.69,0.00039452,6]
[327619115,1716253874382,-969.54,0.00039452,6]
[327619116,1716253874392,-500.0,0.00039452,6]
[327619117,1716253874401,-821.44,0.00039452,6]
[327619118,1716253874410,-500.0,0.00039452,6]
[327619119,1716253874420,-1077.51,0.00039452,6]
[327619120,1716253874429,-1046.16,0.00039452,6]
[327619121,1716253874440,-837.96,0.00039452,6]
[327619122,1716253874450,-360.59859858,0.00039452,6]
[327619123,1716253874459,-500.0,0.00039452,6]
[327619124,1716253874468,-997.41,0.00039452,6]
[327619125,1716253874477,-1260.3,0.00039452,6]
[327619126,1716253874486,-3518.67,0.00039452,6]
[327619127,1716253874496,-820.42,0.00039452,6]
[327619128,1716253874505,-1158.6,0.00039452,6]
[327619129,1716253874515,-1004.59,0.00039452,6]
[327619130,1716253874525,-681.29,0.00039452,6]
[327619131,1716253874535,-3042.77,0.00039452,6]
[327619132,1716253874545,-647.74,0.00039452,6]
[327619133,1716253874555,-500.0,0.00039452,6]
[327619134,1716253874564,-5346.33,0.00039452,6]
[327619135,1716253874574,-943.14,0.00039452,6]
[327619136,1716253874584,-1121.25,0.00039452,6]
[327619137,1716253874593,-515.21,0.00039452,6]
[327619138,1716253874603,-500.0,0.00039452,6]
[327619139,1716253874612,-658.73,0.00039452,6]
[327619140,1716253874623,-1237.07,0.00039452,6]
[327619141,1716253874633,-990.67,0.00039452,6]
[327619142,1716253874644,-19167.87,0.00039452,6]
[327619143,1716253874654,-500.0,0.00039452,6]
[327619144,1716253874665,-3079.47,0.00039452,6]
[327619145,1716253874675,-1616.35,0.00039452,6]
[327619146,1716253874687,-2748.26,0.00039452,6]
[327619147,1716253874710,-500.0,0.00039452,6]
[327619148,1716253874721,-1763.02,0.00039452,6]
[327619149,1716253874734,-2177.92,0.00039452,6]
[327619150,1716253874748,-595.62,0.00039452,6]
[327619151,1716253874763,-950.94,0.00039452,6]
[327619152,1716253874773,-1947.64,0.00039452,6]
[327619153,1716253874784,-1016.17,0.00039452,6]
[327619154,1716253874796,-558.05,0.00039452,6]
[327619155,1716253874807,-1519.78,0.00039452,6]
[327619156,1716253874816,-692.08,0.00039452,6]
[327619157,1716253874825,-1272.37,0.00039452,6]
[327619158,1716253874835,-1273.89,0.00039452,6]
[327619159,1716253874844,-1897.49,0.00039452,6]
[327619160,1716253874853,-3762.51,0.00039452,6]
[327619161,1716253874863,-1205.13,0.00039452,6]
[327619162,1716253874872,-225.469764,0.00039452,14]
[327619163,1716253874883,-1822.24,0.00039452,6]
[327619164,1716253874892,-509.33,0.00039452,6]
[327619165,1716253874902,-2425.85,0.00039452,6]
[327619166,1716253874912,-2685.34,0.00039452,6]
[327619167,1716253874922,-2728.24,0.00039452,6]
[327619168,1716253874932,-520.35892583,0.00039452,6]
[327619169,1716253874950,-1303.77,0.00039452,6]
[327619170,1716253874959,-500.0,0.00039452,6]
[327619171,1716253874969,-2884.63,0.00039452,6]
[327619172,1716253874978,-500.0,0.00039452,6]
[327619173,1716253874988,-1228.16,0.00039452,6]
[327619174,1716253874998,-1321.1,0.00039452,6]
[327619175,1716253875008,-500.0,0.00039452,6]
[327619176,1716253875017,-3000.0,0.00039452,2]
[327619177,1716253875027,-500.0,0.00039452,6]
[327619178,1716253875038,-1240.84,0.00039452,6]
[327619179,1716253875047,-843.58,0.00039452,6]
[327619180,1716253875057,-2577.26,0.00039452,6]
[327619181,1716253875066,-1671.16,0.00039452,6]
[327619182,1716253875076,-1265.93,0.00039452,6]
[327619183,1716253875085,-2135.44,0.00039452,6]
[327619184,1716253875095,-500.0,0.00039452,6]
[327619185,1716253875104,-30907.2,0.00039452,6]
[327619186,1716253875114,-1090.89,0.00039452,6]
[327619187,1716253875123,-500.0,0.00039452,6]
[327619188,1716253875132,-2536.19,0.00039452,6]
[327619189,1716253875141,-635.53,0.00039452,6]
[327619190,1716253875151,-500.0,0.00039452,6]
[327619191,1716253875160,-2749.19,0.00039452,6]
[327619192,1716253875169,-3076.91,0.00039452,6]
[327619193,1716253875179,-7102.47,0.00039452,6]
[327619194,1716253875191,-3153.1,0.00039452,6]
[327619195,1716253875202,-500.0,0.00039452,6]
[327619196,1716253875211,-500.0,0.00039452,6]
[327619197,1716253875221,-1940.06,0.00039452,6]
[327619198,1716253875230,-1804.08,0.00039452,6]
[327619199,1716253875239,-500.0,0.00039452,6]
[327619200,1716253875249,-4804.5,0.00039452,6]
[327619201,1716253875258,-500.0,0.00039452,6]
[327619202,1716253875267,-500.0,0.00039452,6]
[327619203,1716253875277,-7125.24,0.00039452,6]
[327619204,1716253875286,-1667.94,0.00039452,6]
[327619205,1716253875296,-1757.85,0.00039452,6]
[327619206,1716253875305,-899.09,0.00039452,6]
[327619207,1716253875314,-1904.37,0.00039452,6]
[327619208,1716253875324,-500.0,0.00039452,6]
[327619209,1716253875333,-500.0,0.00039452,6]
[327619210,1716253875343,-1884.29,0.00039452,6]
[327619211,1716253875352,-1044.57,0.00039452,6]
[327619212,1716253875361,-500.0,0.00039452,6]
[327619213,1716253875371,-429.35600096,0.00039452,6]
[327619214,1716253875380,-500.0,0.00039452,6]
[327619215,1716253875389,-1614.24,0.00039452,6]
[327619216,1716253875399,-5073.66,0.00039452,6]
[327619217,1716253875408,-13398.81,0.00039452,6]
[327619218,1716253875417,-860.18,0.00039452,6]
[327619219,1716253875426,-500.0,0.00039452,6]
[327619220,1716253875436,-13097.45,0.00039452,6]
[327619221,1716253875449,-500.0,0.00039452,6]
[327619222,1716253875459,-1645.47,0.00039452,6]
[327619223,1716253875468,-836.34,0.00039452,6]
[327619224,1716253875477,-500.0,0.00039452,6]
[327619225,1716253875487,-620.45,0.00039452,6]
[327619226,1716253875496,-500.0,0.00039452,6]
[327619227,1716253875505,-500.0,0.00039452,6]
[327619228,1716253875515,-1148.01,0.00039452,6]
[327619229,1716253875524,-5763.12,0.00039452,6]
[327619230,1716253875533,-500.0,0.00039452,6]
[327619231,1716253875543,-500.0,0.00039452,6]
[327619232,1716253875552,-1241.4,0.00039452,6]
[327619233,1716253875562,-739.28,0.00039452,6]
[327619234,1716253875571,-500.0,0.00039452,6]
[327619235,1716253875581,-2921.96,0.00039452,6]
[327619236,1716253875589,-500.0,0.00039452,6]
[327619237,1716253875599,-843.18,0.00039452,6]
[327619238,1716253875608,-1534.44,0.00039452,6]
[327619239,1716253875619,-693.69,0.00039452,6]
[327619240,1716253875628,-1313.48,0.00039452,6]
[327619241,1716253875638,-3596.19,0.00039452,6]
[327619242,1716253875648,-2730.97,0.00039452,6]
[327619243,1716253875657,-890.37,0.00039452,6]
[327619244,1716253875666,-2677.12,0.00039452,6]
[327619245,1716253875675,-500.0,0.00039452,6]
[327619246,1716253875684,-1304.15,0.00039452,6]
[327619247,1716253875698,-500.0,0.00039452,6]
[327619248,1716253875709,-1923.38,0.00039452,6]
[327619249,1716253875721,-500.0,0.00039452,6]
[327619250,1716253875730,-1167.65,0.00039452,6]
[327619251,1716253875739,-5360.27,0.00039452,6]
[327619252,1716253875748,-862.27,0.00039452,6]
[327619253,1716253875759,-1200.58,0.00039452,6]
[327619254,1716253875768,-689.47,0.00039452,6]
[327619255,1716253875778,-500.0,0.00039452,6]
[327619256,1716253875788,-4396.94,0.00039452,6]
[327619257,1716253875797,-1207.05,0.00039452,6]
[327619258,1716253875807,-1613.36,0.00039452,6]
[327619259,1716253875816,-545.15,0.00039452,6]
[327619260,1716253875826,-1381.45,0.00039452,6]
[327619261,1716253875837,-1658.87,0.00039452,6]
[327619262,1716253875847,-2769.83,0.00039452,6]
[327619263,1716253875856,-878.44,0.00039452,6]
[327619264,1716253875866,-500.0,0.00039452,6]
[327619265,1716253875875,-500.0,0.00039452,6]
[327619266,1716253875884,-527.88,0.00039452,6]
[327619267,1716253875893,-2070.86,0.00039452,6]
[327619268,1716253875902,-2078.18,0.00039452,6]
[327619269,1716253875911,-794.8,0.00039452,6]
[327619270,1716253875920,-1184.33,0.00039452,6]
[327619271,1716253875929,-1103.78,0.00039452,6]
[327619272,1716253875941,-2137.07,0.00039452,6]
[327619273,1716253875950,-3564.04,0.00039452,6]
[327619274,1716253875959,-809.14,0.00039452,6]
[327619275,1716253875969,-500.0,0.00039452,6]
[327619276,1716253875978,-583.75,0.00039452,6]
[327619277,1716253875987,-19757.08,0.00039452,6]
[327619278,1716253875996,-500.0,0.00039452,6]
[327619279,1716253876006,-3127.95,0.00039452,6]
[327619280,1716253876015,-833.97,0.00039452,6]
[327619281,1716253876025,-1428.46,0.00039452,6]
[327619282,1716253876035,-656.27,0.00039452,6]
[327619283,1716253876045,-1958.86,0.00039452,6]
[327619284,1716253876054,-30586.79,0.00039452,6]
[327619285,1716253876063,-1663.25,0.00039452,6]
[327619286,1716253876073,-3208.72,0.00039452,6]
[327619287,1716253876082,-840.24,0.00039452,6]
[327619288,1716253876091,-2333.5,0.00039452,6]
[327619289,1716253876100,-1950.27,0.00039452,6]
[327619290,1716253876112,-2160.15,0.00039452,6]
[327619291,1716253876121,-500.0,0.00039452,6]
[327619292,1716253876131,-1298.52,0.00039452,6]
[327619293,1716253876141,-500.0,0.00039452,6]
[327619294,1716253876151,-3257.34,0.00039452,6]
[327619295,1716253876161,-621.442955,0.00039452,14]
[327619296,1716253876171,-1951.3,0.00039452,6]
[327619297,1716253876181,-755.14,0.00039452,6]
[327619298,1716253876195,-1746.08,0.00039452,6]
[327619299,1716253876204,-836.3,0.00039452,6]
[327619300,1716253876214,-959.35,0.00039452,6]
[327619301,1716253876223,-621.442955,0.00039452,14]
[327619302,1716253876233,-844.11,0.00039452,30]
[327619303,1716253876242,-1939.65,0.00039452,6]
[327619304,1716253876252,-500.0,0.00039452,6]
[327619305,1716253876262,-1631.5,0.00039452,6]
[327619306,1716253876272,-3216.03,0.00039452,6]
[327619307,1716253876282,-452.28072224,0.00039452,6]
[327619308,1716253876291,-1798.04,0.00039452,6]
[327619309,1716253876301,-2075.97,0.00039452,6]
[327619310,1716253876311,-14528.74,0.00039452,6]
[327619311,1716253876321,-500.0,0.00039452,6]
[327619312,1716253876331,-2949.33,0.00039452,6]
[327619313,1716253876341,-500.0,0.00039452,6]
[327619314,1716253876351,-1176.66,0.00039452,6]
[327619315,1716253876360,-1836.05,0.00039452,6]